bitfinex-derivatives/quotes_SOLF0:USTF0_20241008
["timestamp","ask_amount","ask_price","bid_price","bid_amount"]
[1728426691780,10.67,143.78,143.75,3.4801]
[1728426692480,14.1493,143.79,143.75,3.4801]
[1728426692979,3.4797,143.77,143.74,19.1503]
[1728426693285,10.67,143.79,143.74,15.67]
[1728426693579,10.67,143.8,143.76,10.67]
[1728426694082,10.67,143.8,143.77,3.4795]
[1728426694885,14.1489,143.8,143.77,3.4795]
[1728426695601,10.67,143.79,143.75,3.48]
[1728426695789,10.67,143.78,143.73,5.0]
[1728426696486,10.67,143.76,143.73,8.4805]
[1728426696677,10.67,143.76,143.73,5.0]
[1728426697990,10.67,143.76,143.72,1.3804]
[1728426698382,10.67,143.75,143.71,15.67]
[1728426698597,10.67,143.75,143.7,1.4357]
[1728426698792,5.0,143.77,143.7,1.4357]
[1728426698793,10.67,143.74,143.7,5.0]
[1728426699182,14.1505,143.74,143.7,8.4812]
[1728426699378,14.1505,143.74,143.7,5.0]
[1728426699685,10.67,143.75,143.7,5.0]
[1728426699878,14.1502,143.75,143.71,3.481]
[1728426700687,10.67,143.74,143.71,3.481]
[1728426702192,3.4802,143.75,143.71,3.481]
[1728426702384,14.1502,143.75,143.71,3.481]
[1728426703986,10.67,143.74,143.7,5.0]
[1728426705409,14.1505,143.74,143.7,8.4812]
[1728426706090,3.48,143.76,143.72,3.4807]
[1728426706299,14.15,143.76,143.72,3.4807]
[1728426707503,10.67,143.76,143.71,3.4809]
[1728426707701,10.67,143.76,143.7,15.67]
[1728426707892,10.67,143.76,143.72,10.67]
[1728426708193,14.1497,143.77,143.74,3.4802]
[1728426713796,10.67,143.75,143.69,0.12502]
[1728426714007,10.67,143.73,143.71,3.481]
[1728426714889,10.67,143.72,143.71,3.481]
[1728426718096,14.1504,143.74,143.71,3.481]
[1728426720909,10.67,143.72,143.69,0.12502]
[1728426721111,14.151,143.72,143.69,3.60652]
[1728426721407,10.67,143.71,143.69,0.12502]
[1728426722008,10.67,143.71,143.69,3.60652]
[1728426722308,3.481,143.72,143.69,3.60652]
[1728426722601,10.67,143.72,143.69,3.60652]
[1728426722809,10.67,143.71,143.69,0.12502]
[1728426724411,3.4813,143.7,143.69,0.12502]
[1728426725630,14.1513,143.7,143.69,0.12502]
[1728426733913,3.55242937,143.72,143.69,3.60662]
[1728426734103,10.67,143.71,143.69,0.12502]
[1728426734503,2.7438,143.78,143.69,0.12502]
[1728426734719,10.67,143.74,143.69,10.79502]
[1728426735211,3.48980861,143.75,143.69,10.79502]
[1728426735513,10.67,143.74,143.69,10.79502]
[1728426736011,14.1504,143.74,143.71,3.4809]
[1728426736408,3.49607523,143.75,143.71,10.67]
[1728426736611,10.67,143.76,143.73,3.4804]
[1728426736809,3.46021626,143.75,143.72,10.67]
[1728426737207,3.46021626,143.75,143.74,3.4804]
[1728426737608,2.7438,143.78,143.74,3.4804]
[1728426737817,89.40914789,143.8,143.75,14.1499]
[1728426737818,5.0,143.79,143.75,14.1499]
[1728426738012,15.67,143.79,143.75,14.1499]
[1728426738311,19.1493,143.79,143.75,14.1499]
[1728426739139,14.1493,143.79,143.75,14.1499]
[1728426741128,3.4794,143.78,143.75,14.1499]
[1728426741307,10.67,143.79,143.75,3.48]
[1728426741615,14.1493,143.79,143.74,10.67]
[1728426742329,103.55824789,143.8,143.77,3.4796]
[1728426742526,89.40914789,143.8,143.76,10.67]
[1728426743416,100.07914789,143.8,143.76,10.67]
[1728426743616,103.55824789,143.8,143.76,10.67]
[1728426744114,103.55824789,143.8,143.76,14.1498]
[1728426744314,14.1492,143.79,143.76,3.4798]
[1728426745518,14.1499,143.77,143.73,3.4805]
[1728426745719,14.1499,143.77,143.72,10.67]
[1728426745720,10.67,143.77,143.72,15.67]
[1728426746614,10.67,143.77,143.74,3.4802]
[1728426747812,10.67,143.77,143.75,3.4801]
[1728426748318,10.67,143.77,143.73,10.67]
[1728426748724,10.67,143.77,143.74,3.4803]
[1728426750123,10.67,143.75,143.72,3.4808]
[1728426750714,10.67,143.75,143.71,15.67]
[1728426751031,10.67,143.76,143.72,10.67]
[1728426751714,14.1496,143.78,143.74,3.4801]
[1728426751909,14.1496,143.78,143.73,10.67]
[1728426753420,14.1496,143.78,143.75,3.48]
[1728426754309,14.1496,143.78,143.74,3.4803]
[1728426757320,14.1496,143.78,143.73,10.67]
[1728426757321,14.1496,143.78,143.75,3.4801]
[1728426763536,14.1492,143.79,143.76,3.4797]
[1728426764433,89.40914789,143.8,143.77,10.67]
[1728426764647,0.12502,143.81,143.78,10.67]
[1728426764931,0.12502,143.81,143.8,3.4789]
[1728426765243,0.12502,143.81,143.8,14.1489]
[1728426765432,0.12502,143.81,143.8,19.1489]
[1728426771138,0.12502,143.81,143.8,14.1489]
[1728426771330,0.12502,143.81,143.79,3.479]
[1728426774133,0.12502,143.81,143.78,3.4793]
[1728426774339,10.79502,143.81,143.78,3.4793]
[1728426774631,10.79502,143.81,143.77,5.0]
[1728426774839,14.27392,143.81,143.77,8.4796]
[1728426775639,14.27392,143.81,143.77,3.4796]
[1728426776141,14.27392,143.81,143.76,10.67]
[1728426776142,3.479,143.8,143.76,19.1498]
[1728426776536,3.4794,143.79,143.75,6.2377]
[1728426776837,3.4794,143.79,143.75,11.2377]
[1728426777136,10.67,143.8,143.75,7.7577]
[1728426777340,14.1491,143.8,143.76,3.4797]
[1728426779744,10.67,143.8,143.76,3.4797]
[1728426780039,3.4792,143.79,143.76,3.4797]
[1728426780233,3.4792,143.79,143.75,11.2378]
[1728426780733,10.67,143.78,143.75,4.9028]
[1728426780935,14.1494,143.78,143.75,1.4227]
[1728426781259,0.12502,143.81,143.71,1.3487]
[1728426781260,10.67,143.76,143.71,1.3487]
[1728426781483,3.4804,143.74,143.71,1.3487]
[1728426781654,10.67,143.75,143.71,4.8297]
[1728426782236,3.4804,143.74,143.71,4.8297]
[1728426782427,10.67,143.75,143.71,4.8297]
[1728426782632,14.1502,143.75,143.71,4.8297]
[1728426783949,14.1502,143.75,143.72,3.4808]
[1728426791745,3.4798,143.77,143.73,3.4804]
[1728426791958,10.67,143.79,143.74,10.67]
[1728426792178,5.0,143.8,143.75,10.67]
[1728426792351,10.67,143.79,143.76,3.4797]
[1728426794348,14.1492,143.79,143.76,3.4797]
[1728426802358,10.67,143.77,143.72,10.67]
[1728426802556,10.67,143.76,143.71,6.3487]
[1728426802749,10.67,143.76,143.71,5.0]
[1728426803351,10.67,143.76,143.73,3.4805]
[1728426805252,14.1497,143.77,143.72,10.67]
[1728426805451,14.1497,143.77,143.74,3.4802]
[1728426807277,10.67,143.77,143.74,3.4802]
[1728426807455,10.67,143.77,143.72,10.67]
[1728426807775,10.67,143.8,143.75,10.67]
[1728426807972,10.67,143.8,143.75,15.67]
[1728426808158,10.67,143.8,143.78,3.4792]
[1728426808471,0.12502,143.81,143.75,15.67]
[1728426808472,0.12502,143.81,143.77,10.67]
[1728426808762,0.12502,143.81,143.78,10.67]
[1728426809161,0.12502,143.81,143.77,3.4796]
[1728426809162,10.79502,143.81,143.77,3.4796]
[1728426809662,10.67,143.79,143.77,3.4796]
[1728426812164,10.67,143.79,143.76,4.8742]
[1728426813566,10.67,143.79,143.75,5.0]
[1728426813758,14.1493,143.79,143.75,8.48]
[1728426815863,10.67,143.78,143.75,8.48]
[1728426816058,10.67,143.78,143.75,3.48]
[1728426816867,10.67,143.78,143.74,15.67]
[1728426817173,14.1496,143.78,143.74,8.4803]
[1728426817801,10.67,143.77,143.72,1.3771]
[1728426818002,10.67,143.75,143.72,9.8578]
[1728426818181,10.67,143.75,143.72,6.3771]
[1728426818368,10.67,143.75,143.73,3.4805]
[1728426818770,14.1497,143.77,143.72,6.3771]
[1728426818973,10.67,143.79,143.74,10.67]
[1728426819577,14.1493,143.79,143.75,3.48]
[1728426824079,10.67,143.76,143.73,3.4805]
[1728426825475,14.1499,143.76,143.73,3.4805]
[1728426826782,14.1497,143.77,143.72,6.3771]
[1728426826991,14.1497,143.77,143.74,3.4803]
[1728426839981,3.49332898,143.76,143.74,3.4803]
[1728426840490,3.49332898,143.76,143.72,6.3771]
[1728426840693,14.16332898,143.76,143.72,6.3771]
[1728426840990,10.67,143.76,143.72,6.3771]
[1728426841382,3.4802,143.75,143.72,9.8579]
[1728426843093,10.67,143.74,143.72,6.3771]
[1728426844189,10.67,143.74,143.72,1.3771]
[1728426845389,3.4803,143.75,143.72,1.3771]
[1728426845594,2.7147,143.79,143.74,3.4802]
[1728426845894,10.67,143.77,143.74,3.4802]
[1728426846693,5.0,143.8,143.74,10.67]
[1728426846996,10.67,143.8,143.75,10.67]
[1728426847592,14.1491,143.8,143.77,3.4795]
[1728426849423,0.12502,143.81,143.78,3.4792]
[1728426849598,0.12502,143.81,143.77,10.67]
[1728426849912,0.12502,143.81,143.78,10.67]
[1728426850106,0.12502,143.81,143.8,3.4789]
[1728426850887,0.12502,143.81,143.8,14.1489]
[1728426852491,0.12502,143.81,143.79,3.4791]
[1728426852796,0.12502,143.81,143.78,5.0]
[1728426853394,0.12502,143.81,143.78,8.4792]
[1728426853590,0.12502,143.81,143.77,12.0715]
[1728426853805,10.67,143.79,143.75,5.0]
[1728426854889,10.67,143.79,143.73,10.67]
[1728426855202,10.67,143.77,143.74,5.0]
[1728426855596,10.67,143.76,143.73,5.0]
[1728426856004,10.67,143.76,143.73,3.4804]
[1728426856795,14.1499,143.76,143.73,3.4804]
[1728426858799,10.67,143.76,143.73,3.4804]
[1728426859746,10.67,143.74,143.7,1.3285]
[1728426860107,10.67,143.74,143.71,3.481]
[1728426860804,10.67,143.73,143.7,4.8096]
[1728426861008,10.67,143.73,143.7,1.3285]
[1728426861307,8.51076445,143.76,143.71,3.4809]
[1728426861308,10.67,143.74,143.71,3.4809]
[1728426864414,10.67,143.73,143.7,4.8098]
[1728426866825,10.67,143.72,143.69,0.12502]
[1728426867019,10.67,143.71,143.69,0.12502]
[1728426867513,14.1513,143.71,143.69,0.12502]
[1728426869022,5.0,143.73,143.69,0.12502]
[1728426869226,3.4809,143.72,143.69,0.12502]
[1728426869415,10.67,143.71,143.69,0.12502]
[1728426870622,10.67,143.73,143.7,3.4812]
[1728426873827,3.4805,143.74,143.69,0.12502]
[1728426874131,10.67,143.75,143.7,10.67]
[1728426874428,10.67,143.75,143.72,3.4807]
[1728426876131,10.67,143.75,143.7,17.0968]
[1728426876426,2.7519,143.8,143.71,10.67]
[1728426876427,10.67,143.76,143.71,10.67]
[1728426876830,10.67,143.76,143.73,3.4805]
[1728426877130,10.67,143.74,143.7,6.4268]
[1728426877426,10.67,143.74,143.71,3.481]
[1728426878427,14.1505,143.74,143.7,4.908]
[1728426878819,10.67,143.74,143.71,3.481]
[1728426879727,10.67,143.74,143.7,12.0968]
[1728426879920,10.67,143.75,143.71,10.67]
[1728426880416,10.67,143.75,143.72,3.4807]
[1728426884829,10.67,143.74,143.71,3.481]
[1728426885035,10.67,143.74,143.7,1.4268]
[1728426885220,10.67,143.72,143.69,5.12502]
[1728426885626,10.67,143.72,143.7,3.4812]
[1728426888232,14.1509,143.72,143.69,8.60652]
[1728426889635,10.67,143.72,143.69,8.60652]
[1728426890435,14.1509,143.72,143.69,8.60652]
[1728426892438,10.67,143.72,143.69,8.60652]
[1728426893234,10.67,143.72,143.69,5.12502]
[1728426893531,10.67,143.72,143.69,0.12502]
[1728426893738,14.1509,143.72,143.69,0.12502]
[1728426894368,14.1509,143.72,143.69,3.60652]
[1728426898741,14.1509,143.72,143.7,3.4813]
[1728426900749,14.1509,143.72,143.69,0.12502]
[1728426900950,14.1509,143.72,143.69,3.60652]
[1728426901547,3.4805,143.74,143.72,3.4809]
[1728426901747,10.67,143.73,143.72,3.4809]
[1728426903245,10.67,143.73,143.71,3.481]
[1728426903445,8.48372234,143.75,143.71,3.481]
[1728426903446,10.67,143.72,143.71,3.481]
[1728426909045,2.7519,143.8,143.69,0.12502]
[1728426909353,10.67,143.75,143.73,3.4805]
[1728426909552,10.67,143.75,143.69,10.79502]
[1728426909743,14.1501,143.75,143.72,3.4808]
[1728426910756,10.67,143.73,143.69,0.12502]
[1728426910970,10.67,143.71,143.69,0.12502]
[1728426912462,10.67,143.71,143.69,3.60642]
[1728426913851,10.67,143.7,143.69,0.12502]
[1728426914447,14.1513,143.7,143.69,0.12502]
[1728426915463,3.482,143.68,143.63,0.12502]
[1728426915663,10.67,143.66,143.63,0.12502]
[1728426915962,5.0,143.7,143.63,3.60792]
[1728426915963,10.67,143.65,143.63,3.60792]
[1728426916157,10.67,143.65,143.63,0.12502]
[1728426916473,10.67,143.64,143.63,0.12502]
[1728426917561,14.1528,143.64,143.63,0.12502]
[1728426919456,3.4832,143.63,143.58,5.0]
[1728426919666,10.67,143.61,143.58,5.0]
[1728426919967,10.67,143.61,143.59,3.4839]
[1728426921062,10.67,143.62,143.59,3.4839]
[1728426922261,10.67,143.62,143.57,10.79502]
[1728426922464,10.67,143.61,143.57,0.12502]
[1728426922762,5.0,143.64,143.57,0.12502]
[1728426922763,10.67,143.59,143.57,0.12502]
[1728426926666,10.67,143.58,143.57,0.12502]
[1728426928470,10.67,143.59,143.57,3.60932]
[1728426928655,1.3933,143.63,143.57,0.12502]
[1728426928861,10.67,143.61,143.57,0.12502]
[1728426929068,10.67,143.6,143.58,3.4842]
[1728426930790,10.67,143.62,143.6,3.4837]
[1728426930969,15.67,143.62,143.57,10.79502]
[1728426931472,15.67,143.62,143.59,3.4838]
[1728426931672,15.67,143.62,143.57,10.79502]
[1728426932371,15.67,143.62,143.59,3.4838]
[1728426932573,15.67,143.62,143.57,10.79502]
[1728426932769,15.67,143.62,143.59,3.4838]
[1728426935170,15.67,143.62,143.6,3.4838]
[1728426938169,14.1535,143.61,143.58,3.4842]
[1728426938366,10.67,143.59,143.58,3.4842]
[1728426939373,10.67,143.61,143.59,3.4839]
[1728426941870,10.67,143.61,143.57,0.12502]
[1728426942070,10.67,143.62,143.57,10.79502]
[1728426942772,10.67,143.62,143.61,3.4835]
[1728426943383,15.67,143.65,143.59,10.67]
[1728426943570,15.67,143.65,143.61,10.67]
[1728426943773,15.67,143.65,143.63,3.4828]
[1728426943968,15.67,143.65,143.61,10.67]
[1728426944165,10.67,143.65,143.61,10.67]
[1728426945274,10.67,143.65,143.63,3.4828]
[1728426946974,10.67,143.65,143.64,3.4828]
[1728426949778,10.67,143.65,143.63,3.4829]
[1728426950281,10.67,143.65,143.62,3.4831]
[1728426950496,10.67,143.64,143.6,5.0]
[1728426950872,10.67,143.64,143.61,3.4833]
[1728426956181,10.67,143.64,143.59,10.67]
[1728426956381,10.67,143.64,143.63,3.483]
[1728426959591,10.67,143.65,143.63,3.483]
[1728426960680,10.67,143.65,143.59,10.67]
[1728426960881,5.0,143.7,143.63,10.67]
[1728426961209,5.0,143.7,143.64,10.67]
[1728426961394,100.26531881,143.69,143.64,10.67]
[1728426962800,100.26531881,143.69,143.67,3.4819]
[1728426963309,10.67,143.68,143.64,10.67]
[1728426963499,10.67,143.67,143.64,3.4827]
[1728426964507,10.67,143.67,143.65,3.4825]
[1728426965705,10.67,143.68,143.63,13.4261]
[1728426965913,10.67,143.68,143.66,3.4822]
[1728426967207,10.67,143.68,143.63,13.4261]
[1728426967405,14.152,143.68,143.65,3.4825]
[1728426967793,10.67,143.68,143.65,3.4825]
[1728426969407,10.67,143.68,143.66,3.4823]
[1728426970725,10.67,143.67,143.63,1.3911]
[1728426970926,10.67,143.65,143.63,1.3911]
[1728426971403,10.67,143.65,143.63,4.874]
[1728426972916,10.67,143.65,143.63,3.4829]
[1728426973715,3.4823,143.66,143.62,3.4832]
[1728426973716,10.67,143.64,143.62,3.4832]
[1728426974220,10.67,143.64,143.6,15.67]
[1728426974424,10.67,143.65,143.6,15.67]
[1728426975219,10.67,143.65,143.61,3.4834]
[1728426975419,10.67,143.65,143.6,5.0]
[1728426976117,10.67,143.65,143.62,3.4831]
[1728426976822,10.67,143.65,143.59,17.107]
[1728426977124,10.67,143.65,143.63,3.4828]
[1728426977621,10.67,143.65,143.61,10.67]
[1728426977818,10.67,143.65,143.64,3.4828]
[1728426978421,10.67,143.66,143.65,3.4824]
[1728426982124,10.67,143.66,143.6,5.0]
[1728426982321,10.67,143.64,143.6,5.0]
[1728426982524,10.67,143.65,143.6,15.67]
[1728426983127,10.67,143.65,143.63,3.4829]
[1728426983525,10.67,143.65,143.6,15.67]
[1728426983924,10.67,143.65,143.62,3.4831]
[1728426984125,10.67,143.65,143.6,15.67]
[1728426984529,10.67,143.65,143.63,3.4829]
[1728426985131,10.67,143.65,143.62,3.4832]
[1728426986633,14.1526,143.65,143.62,3.4832]
[1728426987631,10.67,143.63,143.6,5.0]
[1728426987938,10.67,143.63,143.59,1.437]
[1728426988637,10.67,143.63,143.6,3.4837]
[1728426989135,10.67,143.63,143.59,12.107]
[1728426989339,10.67,143.63,143.62,3.4833]
[1728426993542,10.67,143.63,143.6,3.4835]
[1728426993751,10.67,143.62,143.57,0.12502]
[1728426993935,5.0,143.65,143.57,0.12502]
[1728426993936,10.67,143.61,143.57,0.12502]
[1728426994247,10.67,143.62,143.58,10.67]
[1728426995335,10.67,143.64,143.62,3.4831]
[1728426995543,10.67,143.64,143.58,10.67]
[1728426995840,10.67,143.64,143.59,10.67]
[1728426996434,10.67,143.63,143.57,1.56312]
[1728426996634,10.67,143.63,143.58,10.67]
[1728426996938,10.67,143.63,143.6,3.4837]
[1728426998245,14.1531,143.63,143.6,3.4837]
[1728426998447,14.1531,143.63,143.58,10.67]
[1728426998448,10.67,143.61,143.58,3.4842]
[1728426998745,10.67,143.61,143.57,10.79502]
[1728426998946,10.67,143.61,143.58,3.4842]
[1728427001445,14.1534,143.62,143.59,3.4839]
[1728427005644,5.0,143.66,143.59,10.67]
[1728427005845,10.67,143.65,143.6,10.67]
[1728427006248,10.67,143.64,143.59,5.0]
[1728427007051,3.4832,143.63,143.6,3.4836]
[1728427009251,14.1532,143.63,143.59,3.4839]
[1728427009649,10.67,143.61,143.57,5.12502]
[1728427009855,10.67,143.61,143.58,3.4841]
[1728427011450,14.1535,143.61,143.58,3.4841]
[1728427012552,1.3005,143.67,143.57,10.79502]
[1728427012850,15.67,143.66,143.6,10.67]
[1728427013356,3.4826,143.65,143.61,3.4833]
[1728427014358,3.4826,143.65,143.62,3.4833]
[1728427017054,10.67,143.66,143.63,3.483]
[1728427018558,14.1525,143.66,143.63,3.483]
[1728427024357,10.67,143.64,143.6,12.0181]
[1728427024560,10.67,143.63,143.6,1.3481]
[1728427024859,10.67,143.62,143.58,10.67]
[1728427025456,3.4835,143.61,143.57,0.12502]
[1728427025659,10.67,143.59,143.57,0.12502]
[1728427026058,3.4842,143.58,143.57,0.12502]
[1728427026356,14.1542,143.58,143.57,0.12502]
[1728427026959,3.4841,143.59,143.57,0.12502]
[1728427027163,14.1541,143.59,143.57,0.12502]
[1728427027468,10.67,143.59,143.57,0.12502]
[1728427029259,14.1542,143.58,143.57,0.12502]
[1728427034266,3.4847,143.56,143.55,0.18183129]
[1728427034566,14.1547,143.56,143.55,0.18183129]
[1728427035368,3.4847,143.56,143.55,0.18183129]
[1728427047379,14.1547,143.56,143.55,0.18183129]
[1728427048784,10.67,143.57,143.55,0.18183129]
[1728427049589,14.1545,143.57,143.55,0.18183129]
[1728427051486,3.4845,143.57,143.55,0.18183129]
[1728427051789,14.1545,143.57,143.55,0.18183129]
[1728427053189,3.47082254,143.6,143.55,0.18183129]
[1728427053484,15.67,143.6,143.55,10.85183129]
[1728427053782,6.95602592,143.59,143.56,3.4847]
[1728427054086,14.14192592,143.59,143.55,0.18183129]
[1728427054289,3.4843,143.58,143.55,0.18183129]
[1728427055682,3.4843,143.58,143.55,3.66683129]
[1728427058491,3.4841,143.59,143.56,3.4847]
[1728427058685,14.1541,143.59,143.56,3.4847]
[1728427059083,17.70815028,143.59,143.56,3.4847]
[1728427065597,14.1541,143.59,143.56,3.4847]
[1728427066102,17.6747004,143.59,143.56,3.4847]
[1728427068201,89.5116581,143.62,143.56,10.67]
[1728427068392,105.1816581,143.62,143.57,10.67]
[1728427068791,15.67,143.62,143.57,10.67]
[1728427068992,15.67,143.62,143.59,3.484]
[1728427068993,19.1534,143.62,143.59,3.484]
[1728427072499,5.0,143.62,143.58,3.4841]
[1728427072696,15.67,143.62,143.57,12.0343]
[1728427073792,15.67,143.62,143.6,3.4837]
[1728427074309,3.60822,143.63,143.58,10.67]
[1728427076402,3.60822,143.63,143.6,3.4836]
[1728427078613,14.27822,143.63,143.6,3.4836]
[1728427078911,10.67,143.61,143.55,0.18183129]
[1728427079110,4.98,143.62,143.55,0.18183129]
[1728427079111,10.67,143.59,143.55,0.18183129]
[1728427079312,14.1541,143.59,143.56,3.4845]
[1728427083612,3.4844,143.58,143.55,3.66673129]
[1728427083811,10.67,143.57,143.55,0.18183129]
[1728427084501,4.98,143.59,143.55,0.18183129]
[1728427084705,10.67,143.58,143.55,0.18183129]
[1728427085615,14.1543,143.58,143.55,3.66683129]
[1728427090012,10.67,143.56,143.55,0.18183129]
[1728427090317,14.1547,143.56,143.55,0.18183129]
[1728427091915,6.3405,143.59,143.55,0.18183129]
[1728427092123,10.67,143.56,143.55,0.18183129]
[1728427092717,14.1547,143.56,143.55,0.18183129]
[1728427095422,10.67,143.56,143.55,0.18183129]
[1728427096027,3.4847,143.56,143.55,0.18183129]
[1728427096214,14.1547,143.56,143.55,0.18183129]
[1728427099331,10.67,143.56,143.55,0.18183129]
[1728427101027,14.1547,143.56,143.55,0.18183129]
[1728427103130,19.1347,143.56,143.55,0.18183129]
[1728427115026,19.1347,143.56,143.51,0.12502]
[1728427115027,15.65,143.56,143.51,0.12502]
[1728427115229,10.67,143.52,143.51,0.12502]
[1728427117947,4.98,143.56,143.52,3.4857]
[1728427118140,10.67,143.53,143.51,0.12502]
[1728427118538,10.67,143.53,143.51,3.61092]
[1728427119240,3.4851,143.55,143.52,3.4856]
[1728427119438,14.1551,143.55,143.52,3.4856]
[1728427119938,10.67,143.55,143.53,3.4854]
[1728427120432,10.67,143.55,143.51,0.12502]
[1728427120639,14.1551,143.55,143.52,3.4856]
[1728427123046,10.67,143.54,143.52,3.4856]
[1728427123448,1.3605,143.59,143.51,0.12502]
[1728427123746,14.1548,143.56,143.53,3.4854]
[1728427125143,14.1543,143.58,143.52,12.0121]
[1728427125345,14.1543,143.58,143.52,13.3172]
[1728427125741,14.1543,143.58,143.55,3.4848]
[1728427126654,10.67,143.58,143.53,10.67]
[1728427126847,10.67,143.58,143.53,15.65]
[1728427127345,10.67,143.59,143.57,3.4845]
[1728427137260,3.4843,143.58,143.56,3.4847]
[1728427137460,10.67,143.57,143.52,2.6472]
[1728427137666,10.67,143.56,143.52,2.6472]
[1728427138365,10.67,143.57,143.52,2.6472]
[1728427138865,14.1546,143.57,143.54,3.4852]
[1728427141566,3.4848,143.56,143.53,3.4853]
[1728427144060,3.4843,143.58,143.54,3.485]
[1728427144255,10.67,143.57,143.53,10.67]
[1728427145362,14.1545,143.57,143.53,10.67]
[1728427145568,14.1545,143.57,143.54,3.4852]
[1728427149663,8.52046127,143.6,143.54,10.67]
[1728427149867,10.67,143.58,143.56,3.4847]
[1728427152471,14.1541,143.59,143.56,3.4847]
[1728427155774,14.1541,143.59,143.54,15.65]
[1728427155972,14.1541,143.59,143.57,3.4844]
[1728427157676,14.1541,143.59,143.56,3.4846]
[1728427162179,10.67,143.58,143.54,15.65]
[1728427162378,14.1543,143.58,143.55,3.4849]
[1728427165180,14.1543,143.58,143.56,3.4847]
[1728427166779,10.67,143.58,143.56,3.4847]
[1728427168182,3.4841,143.59,143.56,3.4847]
[1728427170588,14.21046127,143.6,143.58,3.4842]
[1728427170589,3.4839,143.6,143.58,3.4842]
[1728427170786,10.67,143.62,143.57,10.67]
[1728427171191,14.1534,143.62,143.59,3.4838]
[1728427171388,0.12502,143.63,143.58,10.67]
[1728427171682,3.60832,143.63,143.6,3.4836]
[1728427174989,10.67,143.62,143.58,1.3946]
[1728427175291,10.67,143.61,143.58,1.3946]
[1728427175474,10.67,143.61,143.57,4.98]
[1728427176085,14.1536,143.61,143.58,3.4841]
[1728427176385,10.79502,143.63,143.58,10.67]
[1728427176585,3.4834,143.62,143.59,3.4839]
[1728427183688,10.67,143.61,143.58,3.4841]
[1728427184185,14.1537,143.61,143.58,3.4841]
[1728427189798,0.12502,143.63,143.57,4.98]
[1728427190103,14.154,143.6,143.55,10.67]
[1728427191496,14.154,143.6,143.57,3.4843]
[1728427196310,10.67,143.6,143.58,3.4842]
[1728427198306,10.67,143.6,143.56,10.67]
[1728427198609,14.154,143.6,143.57,3.4844]
[1728427202317,10.67,143.58,143.54,15.65]
[1728427202614,10.67,143.58,143.55,3.4849]
[1728427203822,10.67,143.57,143.55,3.4849]
[1728427204425,15.65,143.59,143.56,3.4847]
[1728427205111,19.1342,143.59,143.56,3.4847]
[1728427205510,15.65,143.59,143.56,3.4847]
[1728427205714,10.67,143.57,143.53,1.3751]
[1728427205922,10.67,143.57,143.54,3.4851]
[1728427206421,14.1545,143.57,143.54,3.4851]
[1728427207919,14.1547,143.56,143.53,4.8604]